bitfinex-derivatives/quotes_BTCF0:USTF0_20250928
["timestamp","ask_amount","ask_price","bid_price","bid_amount"]
[1759021054930,0.37989,109670.0,109660.0,0.4498102]
[1759021056526,0.01909,109670.0,109660.0,0.4498102]
[1759021056925,0.01909,109670.0,109660.0,0.45875422]
[1759021057731,1.21262701,109680.0,109670.0,0.1259]
[1759021057732,0.37989,109680.0,109670.0,0.1259]
[1759021057932,0.37989,109680.0,109670.0,0.37746881]
[1759021058427,0.3608,109680.0,109670.0,0.77746881]
[1759021058625,0.37989,109690.0,109680.0,0.1258917]
[1759021058823,0.01909,109690.0,109680.0,0.37746051]
[1759021059019,0.37989,109690.0,109680.0,0.37746051]
[1759021059223,0.01909,109690.0,109680.0,0.1258917]
[1759021059426,0.37989,109690.0,109680.0,0.37746051]
[1759021059731,0.01909,109690.0,109680.0,0.37746051]
[1759021062739,1.21021,109700.0,109690.0,0.1258833]
[1759021062936,1.23396267,109700.0,109690.0,0.37745211]
[1759021066543,1.23396267,109700.0,109690.0,0.31435764]
[1759021066845,1.51354211,109700.0,109690.0,0.31435764]
[1759021068048,0.40364267,109700.0,109690.0,0.50283198]
[1759021068347,0.40364267,109700.0,109690.0,0.31435764]
[1759021071945,0.49474777,109700.0,109690.0,0.31435764]
[1759021072555,0.0911134,109690.0,109680.0,0.03505]
[1759021072751,1.51343041,109690.0,109680.0,0.0911217]
[1759021073059,0.1102117,109680.0,109670.0,0.31465434]
[1759021073357,0.68323871,109680.0,109670.0,0.12618]
[1759021073653,0.87171305,109680.0,109670.0,0.03505]
[1759021073853,1.27171305,109680.0,109670.0,0.03505]
[1759021074158,1.27171305,109680.0,109670.0,0.12618]
[1759021081661,1.08323871,109680.0,109670.0,0.31465434]
[1759021084664,1.08323871,109680.0,109670.0,0.12618]
[1759021084867,1.08323871,109680.0,109670.0,0.31465434]
[1759021085168,1.27171305,109680.0,109670.0,0.12618]
[1759021087164,0.11022,109670.0,109660.0,0.31465774]
[1759021087468,0.1102283,109660.0,109650.0,0.31516544]
[1759021087766,0.29870264,109660.0,109650.0,0.31516544]
[1759021087963,1.12894264,109660.0,109650.0,0.32415534]
[1759021088967,0.9404683,109660.0,109650.0,0.32415534]
[1759021091669,1.48974264,109660.0,109650.0,0.31516544]
[1759021096469,0.65950264,109660.0,109650.0,0.31516544]
[1759021096662,1.48974264,109660.0,109650.0,0.31516544]
[1759021098277,0.65950264,109660.0,109650.0,0.31516544]
[1759021098463,1.48974264,109660.0,109650.0,0.31516544]
[1759021100875,1.48974264,109660.0,109650.0,0.1266911]
[1759021101172,1.48974264,109660.0,109650.0,0.31516544]
[1759021101574,1.48978264,109660.0,109650.0,0.31516544]
[1759021101772,0.65950264,109660.0,109650.0,0.31516544]
[1759021101973,1.48974264,109660.0,109650.0,0.31516544]
[1759021102173,1.51354252,109660.0,109650.0,0.31516544]
[1759021103384,0.1102366,109650.0,109640.0,0.32292675]
[1759021103573,0.65951094,109650.0,109640.0,0.32292675]
[1759021103881,0.4710366,109650.0,109640.0,0.32292675]
[1759021104674,1.05951094,109650.0,109640.0,0.0911496]
[1759021104872,1.05951094,109650.0,109640.0,0.0911549]
[1759021105176,1.88975094,109650.0,109640.0,0.0911549]
[1759021105569,1.9135488,109650.0,109640.0,0.0911549]
[1759021106085,1.9135888,109650.0,109640.0,0.0911549]
[1759021106885,1.9135888,109650.0,109630.0,0.30183852]
[1759021107087,0.65951924,109640.0,109630.0,0.32313852]
[1759021107381,0.65951924,109640.0,109630.0,0.31403194]
[1759021111683,1.48983924,109640.0,109630.0,0.31403194]
[1759021113382,0.1102531,109630.0,109620.0,0.32336547]
[1759021113579,1.12904744,109630.0,109620.0,0.32336547]
[1759021115088,1.03788434,109630.0,109620.0,0.32336547]
[1759021115488,0.84941,109630.0,109620.0,0.32336547]
[1759021117789,0.84941,109630.0,109620.0,0.51183981]
[1759021119191,0.84941,109630.0,109620.0,0.13489113]
[1759021119378,0.01909,109630.0,109620.0,0.51183981]
[1759021119581,0.84941,109630.0,109620.0,0.51183981]
[1759021121582,0.01909,109630.0,109620.0,0.51183981]
[1759021121785,0.84941,109630.0,109620.0,0.51183981]
[1759021124193,0.01909,109630.0,109620.0,0.51183981]
[1759021124390,0.84945,109630.0,109620.0,0.51183981]
[1759021124889,0.01909,109630.0,109620.0,0.51183981]
[1759021125091,0.84945,109630.0,109620.0,0.51183981]
[1759021125896,0.83036,109630.0,109620.0,0.51183981]
[1759021126395,1.21025,109640.0,109630.0,0.1252531]
[1759021126595,1.21025,109640.0,109630.0,0.31372744]
[1759021126790,0.37989,109640.0,109630.0,0.31372744]
[1759021127092,1.21021,109640.0,109630.0,0.31372744]
[1759021127296,1.42247356,109640.0,109630.0,0.31372744]
[1759021127697,0.59215356,109640.0,109630.0,0.31372744]
[1759021127897,1.42247356,109640.0,109630.0,0.31372744]
[1759021128598,1.23399922,109640.0,109630.0,0.37682587]
[1759021128898,1.21021,109640.0,109630.0,0.37682587]
[1759021129097,1.2340021,109640.0,109630.0,0.1252531]
[1759021129397,1.3251569,109640.0,109630.0,0.1252531]
[1759021129894,1.2340021,109640.0,109630.0,0.1252531]
[1759021131001,1.3251569,109640.0,109630.0,0.1252531]
[1759021131399,1.2340021,109640.0,109630.0,0.1252531]
[1759021134702,1.3251569,109640.0,109630.0,0.1252531]
[1759021141807,1.2339621,109640.0,109630.0,0.1252531]
[1759021151021,1.3251169,109640.0,109630.0,0.1252531]
[1759021151225,1.32516501,109640.0,109630.0,0.1252531]
[1759021153020,1.32516501,109640.0,109620.0,0.02242533]
[1759021153220,0.1102614,109620.0,109610.0,0.1256744]
[1759021153424,1.21013,109620.0,109610.0,0.1256744]
[1759021153623,1.21013,109620.0,109610.0,0.13490184]
[1759021153925,1.21013,109620.0,109610.0,0.38647461]
[1759021158233,0.37989,109620.0,109610.0,0.38647461]
[1759021158534,1.21013,109620.0,109610.0,0.38647461]
[1759021158731,0.37989,109620.0,109610.0,0.38647461]
[1759021158935,1.21009,109620.0,109610.0,0.38647461]
[1759021159133,0.37989,109620.0,109610.0,0.38647461]
[1759021159336,0.01909,109620.0,109610.0,0.38647461]
[1759021166540,0.01909,109620.0,109610.0,0.74727461]
[1759021167328,0.01909,109620.0,109610.0,0.38647461]
[1759021169039,0.01909,109620.0,109610.0,0.13490184]
[1759021169241,0.01909,109620.0,109610.0,0.38647461]
[1759021169940,0.01909,109620.0,109610.0,0.74727461]
[1759021170340,0.01909,109620.0,109610.0,0.38647461]
[1759021170841,0.01909,109620.0,109610.0,0.74727461]
[1759021174842,0.01909,109620.0,109610.0,0.38647461]
[1759021177034,0.01909,109630.0,109620.0,0.1265697]
[1759021177239,0.01909,109630.0,109620.0,0.37814247]
[1759021183343,1.20997,109640.0,109630.0,0.1265611]
[1759021183543,1.23376009,109640.0,109630.0,0.37813387]
[1759021187149,1.20993,109640.0,109630.0,0.37813387]
[1759021188550,1.20993,109640.0,109630.0,0.31523788]
[1759021189655,0.02381029,109640.0,109630.0,1.09259144]
[1759021189857,1.04149,109660.0,109650.0,0.1271244]
[1759021190059,1.06529684,109660.0,109650.0,0.31580118]
[1759021193053,1.15643294,109660.0,109650.0,0.1271244]
[1759021193253,1.15643294,109660.0,109650.0,0.31580118]
[1759021194159,1.1326261,109660.0,109650.0,0.31580118]
[1759021200858,1.04149,109660.0,109650.0,0.31580118]
[1759021201055,0.37989,109660.0,109650.0,0.51337829]
[1759021201255,1.20965,109660.0,109650.0,0.51337829]
[1759021201651,0.3608,109660.0,109650.0,0.91337829]
[1759021201858,1.20965,109670.0,109660.0,0.1271178]
[1759021202056,1.20965,109670.0,109660.0,0.50447136]
[1759021202252,1.48945628,109670.0,109660.0,0.03598]
[1759021202457,1.48945628,109670.0,109650.0,0.1045323]
[1759021202659,1.48945628,109670.0,109660.0,0.21126678]
[1759021202660,1.51321106,109670.0,109660.0,0.21126678]
[1759021203060,1.51321106,109670.0,109660.0,0.22465678]
[1759021203261,1.48945628,109670.0,109660.0,0.22465678]
[1759021203559,1.48945628,109670.0,109660.0,0.31579458]
[1759021203761,1.51320972,109670.0,109660.0,0.31579458]
[1759021204159,1.48945628,109670.0,109660.0,0.31579458]
[1759021204658,1.51320911,109670.0,109660.0,0.31579458]
[1759021204962,1.48945628,109670.0,109660.0,0.31579458]
[1759021205161,1.51320933,109670.0,109660.0,0.31579458]
[1759021205362,1.51320933,109670.0,109660.0,0.1271178]
[1759021205662,1.51320933,109670.0,109660.0,0.31579458]
[1759021206258,1.48945628,109670.0,109660.0,0.31579458]
[1759021206754,0.0911378,109660.0,109650.0,0.1045325]
[1759021206954,0.65970458,109660.0,109650.0,0.31579928]
[1759021208468,0.4710278,109660.0,109650.0,0.31579928]
[1759021209664,0.65970458,109660.0,109650.0,0.31579928]
[1759021210668,0.65970458,109660.0,109650.0,0.1045325]
[1759021210869,0.65970458,109660.0,109650.0,0.27981928]
[1759021210870,0.67163458,109660.0,109650.0,0.27981928]
[1759021211170,0.69540388,109660.0,109650.0,0.27981928]
[1759021212170,0.69540388,109660.0,109650.0,0.18867678]
[1759021212375,0.1102361,109650.0,109640.0,0.31498428]
[1759021212572,1.49251288,109650.0,109640.0,0.31498428]
[1759021213258,1.51629339,109650.0,109640.0,0.31498428]
[1759021215573,0.68349339,109650.0,109640.0,0.31498428]
[1759021215873,1.51617339,109650.0,109640.0,0.31498428]
[1759021217475,0.38458051,109650.0,109640.0,1.09233784]
[1759021217675,0.37989,109660.0,109650.0,0.1259861]
[1759021217876,0.3608,109660.0,109650.0,0.50333966]
[1759021218573,0.3608,109670.0,109660.0,0.0911378]
[1759021218778,1.21261,109680.0,109670.0,0.1259695]
[1759021218975,1.23638791,109680.0,109670.0,0.31464628]
[1759021219373,1.23638791,109680.0,109670.0,0.1259695]
[1759021219573,1.23638791,109680.0,109670.0,0.31464628]
[1759021220278,1.3037312,109680.0,109670.0,0.31464628]
[1759021220773,1.32749956,109680.0,109670.0,0.31464628]
[1759021220966,1.51617634,109680.0,109670.0,0.31464628]
[1759021222177,1.42505514,109680.0,109670.0,0.31464628]
[1759021222878,1.51617634,109680.0,109670.0,0.31464628]
[1759021224977,1.23637836,109680.0,109670.0,0.31464628]
[1759021225178,1.42505514,109680.0,109670.0,0.31464628]
[1759021225676,1.23637836,109680.0,109670.0,0.31464628]
[1759021225874,1.21257,109690.0,109680.0,0.1259612]
[1759021226073,0.40363707,109690.0,109680.0,0.50331476]
[1759021226371,1.21269,109700.0,109690.0,0.1259529]
[1759021226578,1.23742962,109700.0,109690.0,0.31462968]
[1759021226968,0.40362962,109700.0,109690.0,0.32375735]
[1759021227170,1.21365,109700.0,109690.0,0.32375735]
[1759021227580,1.3047546,109700.0,109690.0,0.31462968]
[1759021227882,1.21365,109700.0,109690.0,0.31462968]
[1759021228778,1.89343138,109700.0,109690.0,0.03484]
[1759021228982,1.89343138,109700.0,109670.0,0.31464278]
[1759021228983,0.1102112,109680.0,109670.0,0.31464278]
[1759021229184,1.49356798,109680.0,109670.0,0.31464278]
[1759021229383,1.49356798,109680.0,109660.0,0.31465058]
[1759021229384,0.1102195,109670.0,109660.0,0.31465058]
[1759021229584,0.65969628,109670.0,109660.0,0.31465058]
[1759021232382,0.65969628,109670.0,109660.0,0.03484]
[1759021233085,0.1102278,109660.0,109650.0,0.13498897]
[1759021233384,0.4710278,109660.0,109650.0,0.23252515]
[1759021233587,1.49342458,109660.0,109650.0,0.23252515]
[1759021234086,1.49342458,109660.0,109650.0,0.32367125]
[1759021235490,0.65970458,109660.0,109650.0,0.32367125]
[1759021235693,1.49350458,109660.0,109650.0,0.32367125]
[1759021236389,1.49346458,109660.0,109650.0,0.32367125]
[1759021237986,1.21357,109660.0,109650.0,0.32367125]
[1759021238788,0.37989,109660.0,109650.0,0.51234803]
[1759021238979,0.37989,109660.0,109650.0,0.32367125]
[1759021239291,1.21353,109660.0,109650.0,0.32367125]
[1759021239687,0.37989,109660.0,109650.0,0.32367125]
[1759021239894,0.37989,109660.0,109650.0,0.72367125]
[1759021239895,1.21345,109660.0,109650.0,0.72367125]
[1759021240190,0.37989,109660.0,109650.0,0.72367125]
[1759021240586,0.37989,109660.0,109650.0,0.32367125]
[1759021242093,0.3608,109660.0,109650.0,0.72367125]
[1759021242283,1.21385,109680.0,109670.0,0.1259695]
[1759021242590,0.37989,109680.0,109670.0,0.31464628]
[1759021242892,1.21385,109680.0,109670.0,0.31464628]
[1759021245990,0.37989,109680.0,109670.0,0.31464628]
[1759021246198,1.21373,109680.0,109670.0,0.31464628]
[1759021247693,0.37989,109680.0,109670.0,0.31464628]
[1759021247891,0.3608,109680.0,109670.0,0.90332306]
[1759021248186,0.37989,109680.0,109670.0,0.90332306]
[1759021248594,0.37989,109680.0,109670.0,0.77730771]
[1759021249094,0.01909,109680.0,109670.0,0.77730771]
[1759021252993,1.21357,109690.0,109680.0,0.1270812]
[1759021253190,1.21357,109690.0,109680.0,0.37841941]
[1759021256301,0.37989,109690.0,109680.0,0.37841941]
[1759021256499,1.21277,109690.0,109680.0,0.37841941]
[1759021260400,1.3038829,109690.0,109680.0,0.1270812]
[1759021260605,1.55522111,109690.0,109680.0,0.1270812]
[1759021261199,1.3038829,109690.0,109680.0,0.1270812]
[1759021261703,1.55522111,109690.0,109680.0,0.1270812]
[1759021262605,1.3038829,109690.0,109680.0,0.1270812]
[1759021265203,1.32758594,109690.0,109680.0,0.1270812]
[1759021269522,0.49470594,109690.0,109680.0,0.1270812]
[1759021269720,1.32698594,109690.0,109680.0,0.1270812]
[1759021270122,0.49470594,109690.0,109680.0,0.1270812]
[1759021270325,1.32694594,109690.0,109680.0,0.1270812]
[1759021270526,0.38450304,109690.0,109680.0,1.02975762]
[1759021270823,0.38452994,109690.0,109680.0,1.02975762]
[1759021271021,0.3608,109690.0,109680.0,1.02975762]
[1759021271219,0.38453653,109690.0,109680.0,1.02975762]
[1759021271721,0.40362653,109690.0,109680.0,0.77841941]
[1759021272716,0.40362653,109690.0,109680.0,0.8494856]
[1759021273111,0.49473943,109690.0,109680.0,0.4494856]
[1759021273924,0.40362653,109690.0,109680.0,0.4494856]
[1759021276829,0.37989,109690.0,109680.0,0.4494856]
[1759021280334,0.02374879,109690.0,109680.0,1.10082381]
[1759021280633,0.3608,109700.0,109690.0,0.1251729]
[1759021280832,0.38454693,109700.0,109690.0,0.37651111]
[1759021281033,0.40363693,109700.0,109690.0,0.37651111]
[1759021281231,0.37989,109700.0,109690.0,0.37651111]
[1759021291341,0.4709946,109700.0,109690.0,0.37651111]
[1759021291540,0.37989,109700.0,109690.0,0.37651111]
[1759021292437,0.4709946,109700.0,109690.0,0.37651111]
[1759021292941,0.37989,109700.0,109690.0,0.37651111]
[1759021293944,0.4709946,109700.0,109690.0,0.37651111]
[1759021295745,0.37989,109700.0,109690.0,0.37651111]
[1759021302049,0.4709946,109700.0,109690.0,0.37651111]
[1759021308253,0.49475044,109700.0,109690.0,0.37651111]
[1759021309148,0.40364584,109700.0,109690.0,0.37651111]
[1759021309556,0.49475044,109700.0,109690.0,0.37651111]
[1759021309960,0.37989,109700.0,109690.0,0.37651111]
[1759021310252,0.49475484,109700.0,109690.0,0.37651111]
[1759021310553,0.49475484,109700.0,109690.0,0.50207782]
[1759021310955,0.49975484,109700.0,109690.0,0.50207782]
[1759021311154,0.49975484,109700.0,109690.0,0.31362536]
[1759021318060,0.1102029,109690.0,109680.0,0.17586139]
[1759021318361,0.37989,109690.0,109680.0,0.57431631]
[1759021319456,0.01909,109690.0,109680.0,0.57431631]
[1759021319659,1.3027547,109700.0,109690.0,0.1258329]
[1759021319961,0.49475864,109700.0,109690.0,0.31428536]
[1759021320159,0.49475864,109700.0,109690.0,0.1258329]
[1759021320365,0.6832111,109700.0,109690.0,0.21000246]
[1759021320558,1.28992074,109700.0,109690.0,0.02155]
[1759021320760,1.10146828,109700.0,109690.0,0.02155]
[1759021320964,1.10646828,109700.0,109690.0,0.22317246]
[1759021321664,1.10646828,109700.0,109690.0,0.31428536]
[1759021321959,0.1122313,109680.0,109670.0,0.03518]
[1759021322160,0.1122396,109670.0,109660.0,0.03518]
[1759021322355,0.66149206,109670.0,109660.0,0.31477036]
[1759021323361,0.38191,109670.0,109660.0,0.31477036]
[1759021323574,0.38191,109670.0,109660.0,0.50322282]
[1759021323872,0.02111,109670.0,109660.0,0.50322282]
[1759021326676,0.38191,109670.0,109660.0,0.50322282]
[1759021326875,0.4730395,109670.0,109660.0,0.50322282]
[1759021329374,0.38191,109670.0,109660.0,0.50322282]
[1759021329676,0.3608,109670.0,109660.0,0.1263179]
[1759021329874,0.38191,109670.0,109660.0,0.50322282]
[1759021333571,0.02111,109670.0,109660.0,0.50322282]
[1759021333878,0.38191,109690.0,109680.0,0.1264413]
[1759021334077,1.21695,109690.0,109680.0,0.50334622]
[1759021334279,1.3080629,109690.0,109680.0,0.50334622]
[1759021334475,1.3080629,109690.0,109680.0,0.31489376]
[1759021334678,1.49651536,109690.0,109680.0,0.31489376]
[1759021334875,1.49651536,109690.0,109670.0,0.03532]
[1759021334876,0.1122312,109680.0,109670.0,0.03532]
[1759021335081,0.84993612,109680.0,109670.0,0.03532]
[1759021335271,0.87364238,109680.0,109670.0,0.03532]
[1759021336175,0.87364238,109680.0,109660.0,0.1047652]
[1759021336176,0.0911295,109670.0,109660.0,0.1047652]
[1759021336382,0.66149196,109670.0,109660.0,0.1266152]
[1759021336679,0.66149196,109670.0,109660.0,0.31506766]
[1759021339376,0.66149196,109670.0,109660.0,0.22393246]
[1759021339576,0.66149196,109670.0,109660.0,0.31507036]
[1759021339776,1.49657196,109670.0,109660.0,0.01363]
[1759021339985,0.1122479,109660.0,109650.0,0.32354173]
[1759021340181,0.66150036,109660.0,109650.0,0.22339246]
[1759021340587,0.66150036,109660.0,109650.0,0.31453866]
[1759021341785,1.26868494,109660.0,109650.0,0.002]
[1759021342082,1.28039946,109660.0,109650.0,0.002]
[1759021342291,0.1122562,109650.0,109640.0,0.01347]
[1759021342586,0.1122645,109640.0,109630.0,0.32417166]
[1759021342885,0.4730645,109640.0,109630.0,0.32417166]
[1759021344779,0.4730645,109640.0,109630.0,0.22369246]
[1759021344780,1.06151696,109640.0,109630.0,0.22369246]
[1759021345181,1.06151696,109640.0,109630.0,0.22569246]
[1759021346184,1.06351696,109640.0,109630.0,0.22369246]
[1759021346883,1.06551696,109640.0,109630.0,0.22369246]
[1759021347286,1.90031696,109640.0,109630.0,0.22369246]
[1759021347982,1.06551696,109640.0,109630.0,0.22369246]
[1759021348187,1.90003696,109640.0,109630.0,0.22369246]
[1759021348492,1.06551696,109640.0,109630.0,0.22369246]
[1759021348687,1.89999696,109640.0,109630.0,0.22369246]
[1759021349690,1.89999696,109640.0,109630.0,0.31485526]
[1759021350491,1.06551696,109640.0,109630.0,0.31485526]
[1759021350691,1.89987696,109640.0,109630.0,0.31485526]
[1759021350992,1.06551696,109640.0,109630.0,0.31485526]
[1759021351187,1.89983696,109640.0,109630.0,0.31485526]
[1759021352093,1.06551696,109640.0,109630.0,0.31485526]
[1759021352294,1.89975696,109640.0,109630.0,0.31485526]
[1759021354693,1.06551696,109640.0,109630.0,0.31485526]
[1759021354895,1.89955696,109640.0,109630.0,0.31485526]
[1759021355199,0.1122728,109630.0,109620.0,0.03438]
[1759021355390,0.66152526,109630.0,109620.0,0.03438]
[1759021356291,0.66352526,109630.0,109620.0,0.03438]
[1759021356688,0.0911711,109620.0,109610.0,0.30142892]
[1759021356899,0.66153356,109620.0,109610.0,0.32319892]
[1759021358697,0.66153356,109620.0,109610.0,0.03438]
[1759021358894,0.66153356,109620.0,109610.0,0.22283246]
[1759021359094,1.49537356,109620.0,109610.0,0.22283246]
[1759021359497,0.66153356,109620.0,109610.0,0.31401186]
[1759021359790,0.6853275,109620.0,109610.0,0.22283246]
[1759021359997,1.5190475,109620.0,109610.0,0.31401186]
[1759021360595,0.6853275,109620.0,109610.0,0.31401186]
[1759021361198,1.5190075,109620.0,109610.0,0.31401186]
[1759021361696,1.33055504,109620.0,109610.0,0.31401186]
[1759021362997,0.40570394,109620.0,109610.0,0.31401186]
[1759021363297,1.23930394,109620.0,109610.0,0.31401186]
[1759021363487,0.85483,109620.0,109610.0,0.31401186]
[1759021363688,0.02111,109620.0,109610.0,0.67481186]
[1759021364000,0.02111,109620.0,109610.0,0.1255594]
[1759021364293,0.02111,109620.0,109610.0,0.31401186]
[1759021364488,0.02111,109620.0,109610.0,0.32329662]
[1759021364694,0.02111,109620.0,109610.0,0.51174908]
[1759021365096,0.02111,109620.0,109610.0,0.32329662]
[1759021368295,0.02111,109620.0,109610.0,0.51174908]
[1759021368500,0.02111,109620.0,109610.0,0.32329662]
[1759021369796,0.3608,109630.0,109610.0,0.32329662]
[1759021370002,0.40576394,109630.0,109620.0,0.50364602]
[1759021371901,0.40776394,109630.0,109620.0,0.1267411]
[1759021372106,0.40776394,109630.0,109620.0,0.50364602]
[1759021372694,0.38665394,109630.0,109620.0,0.37834343]
[1759021372897,0.40776394,109630.0,109620.0,0.37834343]
[1759021374202,0.04696394,109630.0,109620.0,0.37834343]
[1759021379206,0.02311,109630.0,109620.0,0.37834343]
[1759021381410,0.02311,109630.0,109620.0,0.1267411]
[1759021381601,0.02311,109630.0,109620.0,0.37834343]
[1759021382410,0.38391,109630.0,109620.0,0.37834343]
[1759021383106,0.38391,109630.0,109620.0,0.1267411]
[1759021383306,0.38391,109630.0,109620.0,0.37834343]
[1759021386614,0.02311,109630.0,109620.0,0.37834343]
[1759021387015,0.38391,109630.0,109620.0,0.1267411]
[1759021387514,0.4077972,109630.0,109620.0,0.1267411]
[1759021388302,0.38391,109630.0,109620.0,0.1267411]
[1759021390114,0.38391,109630.0,109620.0,0.37834343]
[1759021395827,0.38391,109630.0,109620.0,0.1267411]
[1759021396023,0.38391,109630.0,109620.0,0.37834343]
[1759021415544,0.02311,109630.0,109620.0,0.37834343]
[1759021415744,0.38391,109630.0,109620.0,0.37834343]
[1759021419647,0.38391,109630.0,109620.0,0.1267411]
[1759021423652,0.4078253,109630.0,109620.0,0.1267411]
[1759021424152,0.76930882,109630.0,109620.0,0.0911711]
[1759021425853,1.16930882,109630.0,109620.0,0.0911711]
[1759021426244,1.17861973,109630.0,109620.0,0.0911711]
[1759021427452,1.15990154,109630.0,109620.0,0.0911711]
[1759021428850,0.1122896,109610.0,109590.0,0.01272544]
[1759021429055,0.38191,109600.0,109590.0,0.12670654]
[1759021429353,1.21307,109600.0,109590.0,0.12670654]
[1759021429545,1.3042579,109600.0,109590.0,0.12670654]
[1759021429748,0.4730979,109600.0,109590.0,0.12670654]
[1759021430053,1.3046579,109600.0,109590.0,0.12670654]
[1759021430352,0.38191,109610.0,109600.0,0.1041279]
[1759021430552,0.3608,109610.0,109600.0,0.37852023]
[1759021430745,0.4519796,109610.0,109600.0,0.01294]
[1759021430944,0.1122979,109600.0,109590.0,0.13070904]
[1759021431148,0.4730979,109600.0,109590.0,0.13070904]
[1759021432239,0.4710979,109600.0,109590.0,0.12670904]
[1759021432654,0.65992503,109600.0,109590.0,0.31553617]
[1759021434251,0.65992503,109600.0,109590.0,0.31853617]
[1759021437254,0.57073713,109600.0,109590.0,0.31853617]
[1759021439149,0.66192493,109600.0,109590.0,0.31853617]
[1759021440655,0.38191,109600.0,109590.0,0.31853617]
[1759021441959,0.02111,109600.0,109590.0,0.31853617]
[1759021442258,0.45408634,109610.0,109600.0,0.1269178]
[1759021442453,1.21379,109610.0,109600.0,0.31574493]
[1759021443654,1.40261713,109610.0,109600.0,0.31574493]
[1759021443854,1.49379663,109610.0,109600.0,0.1289178]
[1759021444447,0.3608,109610.0,109600.0,0.50657206]
[1759021444756,0.3608,109610.0,109600.0,0.90657206]
[1759021445761,0.02111,109620.0,109610.0,0.1269095]
[1759021445963,0.02111,109620.0,109610.0,0.31573663]
[1759021449955,0.20993713,109620.0,109610.0,0.1269095]
[1759021450152,0.20993713,109620.0,109610.0,0.31573663]
[1759021451358,0.20993713,109620.0,109610.0,0.32502038]
[1759021451564,0.02111,109620.0,109610.0,0.32502038]
[1759021453561,0.57073713,109630.0,109620.0,0.1275811]
[1759021453766,0.3608,109630.0,109620.0,0.50523536]
[1759021454663,0.38191,109640.0,109630.0,0.1275728]
[1759021454870,0.57073713,109650.0,109640.0,0.1275645]
[1759021455056,0.38191,109650.0,109640.0,0.50521876]
[1759021455260,0.3608,109650.0,109640.0,0.50521876]
[1759021455458,1.42094001,109660.0,109650.0,0.1275562]
[1759021455660,1.42094001,109660.0,109650.0,0.31638333]
[1759021457970,0.58926001,109660.0,109650.0,0.31638333]
[1759021458470,0.59726001,109660.0,109650.0,0.31638333]
[1759021460172,0.57873713,109660.0,109650.0,0.31638333]
[1759021472577,0.66987503,109660.0,109650.0,0.31638333]
[1759021472877,0.88246244,109660.0,109650.0,0.1275562]
[1759021473078,0.69363531,109660.0,109650.0,0.1275562]
[1759021475274,0.69363531,109660.0,109650.0,0.31638333]
[1759021487071,0.88246244,109660.0,109650.0,0.1275562]
[1759021487379,0.8825448,109660.0,109650.0,0.1275562]
[1759021487888,0.69371767,109660.0,109650.0,0.1275562]
[1759021490084,0.8825448,109660.0,109650.0,0.1275562]
[1759021490380,0.69371767,109660.0,109650.0,0.1275562]
[1759021490583,1.52503767,109660.0,109650.0,0.1275562]
[1759021492386,1.7138648,109660.0,109650.0,0.1275562]
[1759021492787,1.52503767,109660.0,109650.0,0.1275562]
[1759021494593,1.58772604,109660.0,109650.0,0.1275562]
[1759021497493,1.58772878,109660.0,109650.0,0.1275562]
[1759021498889,1.58772878,109660.0,109650.0,0.03641]
[1759021499096,0.1121762,109650.0,109640.0,0.1267195]
[1759021499289,0.49682158,109650.0,109640.0,0.1267195]
[1759021500494,0.50282158,109650.0,109640.0,0.1267195]
[1759021503489,0.75433708,109650.0,109640.0,0.1267195]
[1759021504106,0.50282158,109650.0,109640.0,0.1267195]
[1759021506809,1.33402158,109650.0,109640.0,0.1267195]
[1759021510007,0.97322158,109650.0,109640.0,0.1267195]
[1759021510212,1.33402158,109650.0,109640.0,0.1267195]
[1759021514312,1.33402158,109650.0,109640.0,0.03557]
[1759021514521,1.58553708,109650.0,109640.0,0.1267245]
[1759021515214,1.58553708,109650.0,109640.0,0.03557]
[1759021515918,1.58553708,109650.0,109640.0,0.1267245]
[1759021517216,1.58553708,109650.0,109640.0,0.03557]
[1759021519517,1.33402158,109650.0,109640.0,0.1267245]
[1759021519715,0.0911545,109640.0,109630.0,0.0132]
[1759021519908,0.38464409,109640.0,109630.0,0.3791383]
[1759021520113,1.21580409,109640.0,109630.0,0.3791383]
[1759021520316,0.40575409,109640.0,109630.0,0.3791383]
[1759021520917,0.74842409,109640.0,109630.0,0.03646]
[1759021521322,0.1122728,109630.0,109620.0,0.03646]
[1759021521522,1.5557483,109630.0,109620.0,0.03646]
[1759021522029,1.5557483,109630.0,109620.0,0.1276311]
[1759021522614,1.5577483,109630.0,109620.0,0.1276311]
[1759021524526,1.56699781,109630.0,109620.0,0.1276311]
[1759021527727,1.31548231,109630.0,109620.0,0.1276311]
[1759021527918,1.56699781,109630.0,109620.0,0.1276311]
[1759021531527,1.56699781,109630.0,109620.0,0.03646]
[1759021531737,0.1122811,109620.0,109610.0,0.1275035]
[1759021531931,0.7245966,109620.0,109610.0,0.1275035]
[1759021532939,0.7245966,109620.0,109610.0,0.0911735]
[1759021533135,0.1122894,109610.0,109600.0,0.1282723]
[1759021533331,1.5557649,109610.0,109600.0,0.1282723]
[1759021533635,1.5557649,109610.0,109600.0,0.03709]
[1759021535234,1.5557649,109610.0,109600.0,0.03909]
[1759021535436,1.5557649,109610.0,109600.0,0.1302778]
[1759021536932,0.7246049,109610.0,109600.0,0.1302778]
[1759021537133,1.5558049,109610.0,109600.0,0.1302778]
[1759021539443,0.6334255,109610.0,109600.0,0.1302778]
[1759021539636,1.4646255,109610.0,109600.0,0.1302778]
[1759021540540,1.555805,109610.0,109600.0,0.1302778]
[1759021543847,0.724605,109610.0,109600.0,0.1302778]
[1759021544045,1.555845,109610.0,109600.0,0.1302778]
[1759021544246,0.38191,109620.0,109610.0,0.1282694]
[1759021544539,1.2831629,109630.0,109620.0,0.1050011]
[1759021544744,1.3042729,109630.0,109620.0,0.1282611]
[1759021544939,0.02111,109620.0,109610.0,0.1282639]
[1759021545134,0.7245966,109620.0,109610.0,0.1282639]
[1759021545338,0.6334255,109620.0,109610.0,0.1282639]
[1759021545538,1.4646255,109620.0,109610.0,0.1282639]
[1759021545849,1.3042811,109620.0,109610.0,0.1282639]
[1759021547948,1.5557966,109620.0,109610.0,0.1282639]
[1759021549249,1.57959415,109620.0,109610.0,0.1282639]
[1759021552860,0.74839415,109620.0,109610.0,0.1282639]
[1759021553060,1.32803865,109620.0,109610.0,0.1282639]
[1759021553263,1.57955415,109620.0,109610.0,0.1282639]
[1759021553558,0.49687865,109620.0,109610.0,0.1282639]
[1759021553759,1.23686755,109620.0,109610.0,0.3797794]
[1759021553957,0.87606755,109620.0,109610.0,0.3797794]
[1759021554160,1.21307,109620.0,109610.0,0.3797794]
[1759021554464,0.85227,109620.0,109610.0,0.3797794]
[1759021554668,0.85227,109620.0,109610.0,0.31698803]
[1759021557966,0.02111,109620.0,109610.0,0.71698803]
[1759021558356,1.49292273,109630.0,109620.0,0.1262311]
[1759021558561,1.5167395,109630.0,109620.0,0.31495523]
[1759021560264,1.5187395,109630.0,109620.0,0.31495523]